[Event "Late-Titled-Tuesday-Blitz-May-28-2024"]
[Site "Chess.com"]
[Date "2024.05.28"]
[Round "5"]
[White "marik_spb"]
[Black "crazy_but_lazy"]
[Result "0-1"]
[WhiteElo "2507"]
[BlackElo "2683"]
[TimeControl "180+1"]
[EndTime "14:56:09 PDT"]
[Termination "crazy_but_lazy won by checkmate"]

1. d4 {[%clk 0:02:36.7]} 1... Nf6 {[%clk 0:02:59.4]} 2. c4 {[%clk 0:02:37]} 2...
e6 {[%clk 0:02:59.3]} 3. Nf3 {[%clk 0:02:37.3]} 3... d5 {[%clk 0:02:52]} 4. g3
{[%clk 0:02:36.9]} 4... Bb4+ {[%clk 0:02:50.8]} 5. Bd2 {[%clk 0:02:36.7]} 5...
Be7 {[%clk 0:02:50.3]} 6. Bg2 {[%clk 0:02:37]} 6... O-O {[%clk 0:02:50.5]} 7.
O-O {[%clk 0:02:37.3]} 7... c6 {[%clk 0:02:50.7]} 8. Qc2 {[%clk 0:02:35.6]} 8...
Nbd7 {[%clk 0:02:49.8]} 9. Rd1 {[%clk 0:02:35.7]} 9... a5 {[%clk 0:02:49.9]} 10.
b3 {[%clk 0:02:28]} 10... Ne4 {[%clk 0:02:39.7]} 11. Bf4 {[%clk 0:02:23.7]}
11... f5 {[%clk 0:02:35.4]} 12. Nbd2 {[%clk 0:02:20.6]} 12... g5 {[%clk
0:02:09]} 13. Be5 {[%clk 0:02:20.9]} 13... Nxe5 {[%clk 0:02:06.9]} 14. Nxe5
{[%clk 0:02:20.9]} 14... Bf6 {[%clk 0:02:03.8]} 15. Nxe4 {[%clk 0:01:50.6]}
15... fxe4 {[%clk 0:02:01.2]} 16. f3 {[%clk 0:01:50.1]} 16... exf3 {[%clk
0:01:53.3]} 17. exf3 {[%clk 0:01:39.8]} 17... Bd7 {[%clk 0:01:50.6]} 18. Rd2
{[%clk 0:01:33.7]} 18... Bxe5 {[%clk 0:01:45]} 19. dxe5 {[%clk 0:01:34.6]} 19...
Be8 {[%clk 0:01:45.5]} 20. cxd5 {[%clk 0:01:08.4]} 20... cxd5 {[%clk 0:01:45.5]}
21. Rc1 {[%clk 0:01:07.8]} 21... Bg6 {[%clk 0:01:33.1]} 22. Qc7 {[%clk
0:00:43.9]} 22... Rc8 {[%clk 0:01:33.2]} 23. Qxc8 {[%clk 0:00:44]} 23... Qxc8
{[%clk 0:01:34.1]} 24. Rxc8 {[%clk 0:00:44]} 24... Rxc8 {[%clk 0:01:35]} 25. f4
{[%clk 0:00:44.4]} 25... gxf4 {[%clk 0:01:23.9]} 26. gxf4 {[%clk 0:00:45.3]}
26... Bf5 {[%clk 0:01:24.6]} 27. Kf2 {[%clk 0:00:44.2]} 27... Kf7 {[%clk
0:01:24.4]} 28. Bf3 {[%clk 0:00:33.7]} 28... Rc3 {[%clk 0:01:22.7]} 29. Re2
{[%clk 0:00:20.5]} 29... b5 {[%clk 0:01:19.6]} 30. Re3 {[%clk 0:00:20.7]} 30...
b4 {[%clk 0:01:10.7]} 31. Rxc3 {[%clk 0:00:13.9]} 31... bxc3 {[%clk 0:01:11.6]}
32. Ke2 {[%clk 0:00:06.9]} 32... d4 {[%clk 0:01:12.2]} 33. a3 {[%clk 0:00:07.2]}
33... d3+ {[%clk 0:01:11.6]} 34. Ke1 {[%clk 0:00:06.5]} 34... d2+ {[%clk
0:00:38.4]} 35. Kd1 {[%clk 0:00:06.8]} 35... Ke7 {[%clk 0:00:39.2]} 36. b4
{[%clk 0:00:06.9]} 36... axb4 {[%clk 0:00:40.1]} 37. axb4 {[%clk 0:00:07.6]}
37... Kd7 {[%clk 0:00:41]} 38. h4 {[%clk 0:00:03.6]} 38... Kc7 {[%clk
0:00:39.6]} 39. Be2 {[%clk 0:00:01.4]} 39... Kc6 {[%clk 0:00:39]} 40. h5 {[%clk
0:00:01.9]} 40... h6 {[%clk 0:00:38.3]} 41. b5+ {[%clk 0:00:01.8]} 41... Kc5
{[%clk 0:00:38.4]} 42. Bf1 {[%clk 0:00:01]} 42... Bg4+ {[%clk 0:00:38.8]} 43.
Be2 {[%clk 0:00:01.5]} 43... Bxe2+ {[%clk 0:00:33.3]} 44. Kxe2 {[%clk
0:00:02.4]} 44... Kxb5 {[%clk 0:00:34]} 45. Kd1 {[%clk 0:00:02.4]} 45... Kc5
{[%clk 0:00:34.2]} 46. Kc2 {[%clk 0:00:02.9]} 46... Kd5 {[%clk 0:00:33.7]} 47.
Kd1 {[%clk 0:00:02]} 47... Ke4 {[%clk 0:00:33.9]} 48. f5 {[%clk 0:00:02.9]}
48... Kd3 {[%clk 0:00:34.5]} 49. f6 {[%clk 0:00:03]} 49... c2# {[%clk
0:00:35.4]} 0-1

[Event "Late-Titled-Tuesday-Blitz-May-28-2024"]
[Site "Chess.com"]
[Date "2024.05.28"]
[Round "5"]
[White "ansko1999"]
[Black "platy3"]
[Result "1-0"]
[WhiteElo "2604"]
[BlackElo "2849"]
[TimeControl "180+1"]
[EndTime "14:56:11 PDT"]
[Termination "ansko1999 won on time"]

1. Nf3 {[%clk 0:03:00.5]} 1... d5 {[%clk 0:02:58.8]} 2. c4 {[%clk 0:02:58.3]}
2... e6 {[%clk 0:02:56.6]} 3. d4 {[%clk 0:02:56.7]} 3... Nf6 {[%clk 0:02:55.3]}
4. g3 {[%clk 0:02:54.2]} 4... Bb4+ {[%clk 0:02:52.7]} 5. Bd2 {[%clk 0:02:52]}
5... a5 {[%clk 0:02:52]} 6. a3 {[%clk 0:02:40.2]} 6... Be7 {[%clk 0:02:50.4]} 7.
Bg2 {[%clk 0:02:32.9]} 7... O-O {[%clk 0:02:50.4]} 8. Qc2 {[%clk 0:02:31.9]}
8... c6 {[%clk 0:02:50.4]} 9. O-O {[%clk 0:02:30.9]} 9... b6 {[%clk 0:02:50.4]}
10. cxd5 {[%clk 0:02:19.9]} 10... cxd5 {[%clk 0:02:49.8]} 11. Rc1 {[%clk
0:02:15.2]} 11... Ba6 {[%clk 0:02:47.8]} 12. e3 {[%clk 0:02:12.7]} 12... Nbd7
{[%clk 0:02:46.8]} 13. a4 {[%clk 0:01:57.2]} 13... Rc8 {[%clk 0:02:44.2]} 14.
Nc3 {[%clk 0:01:56.5]} 14... Ne4 {[%clk 0:02:43.7]} 15. Be1 {[%clk 0:01:53]}
15... f5 {[%clk 0:02:29.3]} 16. Bf1 {[%clk 0:01:30.8]} 16... Bxf1 {[%clk
0:02:27.3]} 17. Kxf1 {[%clk 0:01:31.7]} 17... g5 {[%clk 0:02:26.9]} 18. Qb3
{[%clk 0:01:30]} 18... g4 {[%clk 0:02:12]} 19. Nd2 {[%clk 0:01:23.8]} 19... Ndf6
{[%clk 0:01:57.9]} 20. Ncxe4 {[%clk 0:01:20]} 20... Nxe4 {[%clk 0:01:51.1]} 21.
Rxc8 {[%clk 0:01:13.9]} 21... Qxc8 {[%clk 0:01:51]} 22. Qxb6 {[%clk 0:01:14.1]}
22... Kf7 {[%clk 0:01:49.9]} 23. Nxe4 {[%clk 0:01:09.8]} 23... fxe4 {[%clk
0:01:49.3]} 24. Bxa5 {[%clk 0:01:07.9]} 24... Qa8 {[%clk 0:01:41.1]} 25. Bc3
{[%clk 0:01:03.5]} 25... Rc8 {[%clk 0:01:32.6]} 26. a5 {[%clk 0:00:57.9]} 26...
Rb8 {[%clk 0:01:30.5]} 27. Qc7 {[%clk 0:00:55.8]} 27... Qa6+ {[%clk 0:01:20.3]}
28. Kg2 {[%clk 0:00:48.4]} 28... Rf8 {[%clk 0:01:17.9]} 29. Qf4+ {[%clk
0:00:45.5]} 29... Bf6 {[%clk 0:01:12.3]} 30. Qxg4 {[%clk 0:00:26.6]} 30... h6
{[%clk 0:00:47.2]} 31. Ra3 {[%clk 0:00:22.6]} 31... Rb8 {[%clk 0:00:44.6]} 32.
Qf4 {[%clk 0:00:19.8]} 32... Rb7 {[%clk 0:00:41.4]} 33. Qxh6 {[%clk 0:00:18]}
33... Qe2 {[%clk 0:00:42.1]} 34. Qf4 {[%clk 0:00:17.2]} 34... Kg6 {[%clk
0:00:40.7]} 35. a6 {[%clk 0:00:15.8]} 35... Bg5 {[%clk 0:00:41.3]} 36. Qf8
{[%clk 0:00:04.6]} 1-0

[Event "Late-Titled-Tuesday-Blitz-May-28-2024"]
[Site "Chess.com"]
[Date "2024.05.28"]
[Round "5"]
[White "Beaterawn"]
[Black "Thjop"]
[Result "0-1"]
[WhiteElo "2366"]
[BlackElo "2628"]
[TimeControl "180+1"]
[EndTime "14:56:11 PDT"]
[Termination "Thjop won by resignation"]

1. e4 {[%clk 0:03:00.9]} 1... e6 {[%clk 0:02:58.3]} 2. d4 {[%clk 0:03:00.2]}
2... d5 {[%clk 0:02:58.7]} 3. Nc3 {[%clk 0:03:00.4]} 3... Nf6 {[%clk 0:02:58]}
4. Bg5 {[%clk 0:03:00.7]} 4... Bb4 {[%clk 0:02:57.6]} 5. e5 {[%clk 0:03:01]}
5... h6 {[%clk 0:02:57.5]} 6. Be3 {[%clk 0:03:01.7]} 6... Ne4 {[%clk 0:02:57.3]}
7. Qg4 {[%clk 0:03:02.4]} 7... g6 {[%clk 0:02:57.4]} 8. Bd3 {[%clk 0:03:00]}
8... Nxc3 {[%clk 0:02:39.4]} 9. Bd2 {[%clk 0:03:00.1]} 9... Nxa2 {[%clk
0:02:38.7]} 10. c3 {[%clk 0:03:00.5]} 10... Nxc3 {[%clk 0:02:33]} 11. bxc3
{[%clk 0:03:00.5]} 11... Be7 {[%clk 0:02:29.3]} 12. h4 {[%clk 0:02:59.1]} 12...
h5 {[%clk 0:02:12.8]} 13. Qf4 {[%clk 0:02:53.9]} 13... c5 {[%clk 0:02:04.9]} 14.
Nf3 {[%clk 0:02:51.6]} 14... Nc6 {[%clk 0:02:01.4]} 15. Ng5 {[%clk 0:02:42.8]}
15... Bxg5 {[%clk 0:01:49.5]} 16. hxg5 {[%clk 0:02:42.5]} 16... cxd4 {[%clk
0:01:33.8]} 17. cxd4 {[%clk 0:02:37.7]} 17... Bd7 {[%clk 0:01:33.1]} 18. g4
{[%clk 0:01:46.3]} 18... h4 {[%clk 0:01:31.7]} 19. Ke2 {[%clk 0:01:21.5]} 19...
Qb6 {[%clk 0:01:16.4]} 20. Ke3 {[%clk 0:01:05.9]} 20... O-O-O {[%clk 0:01:03.4]}
21. Rhb1 {[%clk 0:01:01.2]} 21... Qc7 {[%clk 0:01:00]} 22. Rc1 {[%clk
0:00:38.6]} 22... Kb8 {[%clk 0:00:54.3]} 23. Bb4 {[%clk 0:00:29.2]} 23... Nxb4
{[%clk 0:00:41.7]} 24. Rxc7 {[%clk 0:00:28.1]} 24... Kxc7 {[%clk 0:00:42.1]} 25.
Qxf7 {[%clk 0:00:19]} 25... h3 {[%clk 0:00:41.9]} 26. Bb5 {[%clk 0:00:12]} 26...
h2 {[%clk 0:00:40.7]} 27. Rc1+ {[%clk 0:00:12.6]} 27... Nc6 {[%clk 0:00:19.3]}
28. Bxc6 {[%clk 0:00:12.3]} 28... bxc6 {[%clk 0:00:19.4]} 29. Rh1 {[%clk
0:00:11.5]} 29... Rh3+ {[%clk 0:00:17.3]} 30. Ke2 {[%clk 0:00:09.2]} 30... Rdh8
{[%clk 0:00:17.1]} 31. Qxg6 {[%clk 0:00:08.2]} 31... R8h4 {[%clk 0:00:17.3]} 32.
Qf7 {[%clk 0:00:03.4]} 32... Rxg4 {[%clk 0:00:17.3]} 33. g6 {[%clk 0:00:04]}
33... Rg1 {[%clk 0:00:17.7]} 34. g7 {[%clk 0:00:04.5]} 34... Rxh1 {[%clk
0:00:12.7]} 35. g8=Q {[%clk 0:00:04.8]} 35... Re1+ {[%clk 0:00:13.3]} 36. Kxe1
{[%clk 0:00:04.5]} 36... h1=Q+ {[%clk 0:00:14.2]} 37. Ke2 {[%clk 0:00:05.1]}
37... Qe4+ {[%clk 0:00:14.2]} 38. Kf1 {[%clk 0:00:02.7]} 38... Rh1+ {[%clk
0:00:14.3]} 39. Qg1 {[%clk 0:00:03.4]} 39... Qb1+ {[%clk 0:00:14.2]} 40. Ke2
{[%clk 0:00:03.4]} 40... Rxg1 {[%clk 0:00:14.1]} 0-1

[Event "Late-Titled-Tuesday-Blitz-May-28-2024"]
[Site "Chess.com"]
[Date "2024.05.28"]
[Round "5"]
[White "Chaubunagungamaug1"]
[Black "JaackCamel"]
[Result "1-0"]
[WhiteElo "2456"]
[BlackElo "2236"]
[TimeControl "180+1"]
[EndTime "14:56:15 PDT"]
[Termination "Chaubunagungamaug1 won on time"]

1. Nf3 {[%clk 0:03:00.9]} 1... d5 {[%clk 0:02:59.4]} 2. d4 {[%clk 0:02:58.8]}
2... e6 {[%clk 0:02:59]} 3. c4 {[%clk 0:02:58.9]} 3... c6 {[%clk 0:02:58.6]} 4.
e3 {[%clk 0:02:57.8]} 4... Nf6 {[%clk 0:02:57.9]} 5. Nc3 {[%clk 0:02:58]} 5...
Nbd7 {[%clk 0:02:57.5]} 6. Bd3 {[%clk 0:02:57.7]} 6... dxc4 {[%clk 0:02:57.4]}
7. Bxc4 {[%clk 0:02:58.6]} 7... b5 {[%clk 0:02:56.4]} 8. Bd3 {[%clk 0:02:58.8]}
8... a6 {[%clk 0:02:56.5]} 9. e4 {[%clk 0:02:58.2]} 9... c5 {[%clk 0:02:54.6]}
10. e5 {[%clk 0:02:58.4]} 10... cxd4 {[%clk 0:02:49.8]} 11. Nxb5 {[%clk
0:02:58]} 11... axb5 {[%clk 0:02:44.1]} 12. exf6 {[%clk 0:02:57.8]} 12... gxf6
{[%clk 0:02:39.1]} 13. O-O {[%clk 0:02:57.9]} 13... Qb6 {[%clk 0:02:31.6]} 14.
Qe2 {[%clk 0:02:57.5]} 14... Ba6 {[%clk 0:02:29.7]} 15. Rd1 {[%clk 0:02:56.5]}
15... Be7 {[%clk 0:02:24.6]} 16. a4 {[%clk 0:02:32.7]} 16... bxa4 {[%clk
0:02:09.4]} 17. Rxa4 {[%clk 0:02:11.1]} 17... Bb7 {[%clk 0:02:03.9]} 18. Rxa8+
{[%clk 0:02:08]} 18... Bxa8 {[%clk 0:02:03.6]} 19. Nxd4 {[%clk 0:01:52.2]} 19...
Rg8 {[%clk 0:01:33.7]} 20. Be4 {[%clk 0:01:46.7]} 20... Bb7 {[%clk 0:01:03.4]}
21. Qf3 {[%clk 0:01:21.5]} 21... Ne5 {[%clk 0:00:55.8]} 22. Qf4 {[%clk
0:01:02.8]} 22... Rg4 {[%clk 0:00:49.7]} 23. Qh6 {[%clk 0:00:27.6]} 23... Rxe4
{[%clk 0:00:42.4]} 24. Be3 {[%clk 0:00:25.3]} 24... Ng4 {[%clk 0:00:33.9]} 25.
Qxh7 {[%clk 0:00:24.6]} 25... Nxe3 {[%clk 0:00:31.8]} 26. Qh8+ {[%clk
0:00:19.8]} 26... Bf8 {[%clk 0:00:29.6]} 27. fxe3 {[%clk 0:00:19.8]} 27... Rg4
{[%clk 0:00:24.5]} 28. g3 {[%clk 0:00:04.5]} 28... Qxb2 {[%clk 0:00:18.7]} 29.
Qh3 {[%clk 0:00:05.1]} 29... Re4 {[%clk 0:00:09.3]} 30. Rf1 {[%clk 0:00:04.1]}
30... Bc5 {[%clk 0:00:05.8]} 31. Qh8+ {[%clk 0:00:03.1]} 31... Kd7 {[%clk
0:00:05.3]} 32. Qg7 {[%clk 0:00:03.8]} 32... Bxd4 {[%clk 0:00:04.6]} 33. Qxf7+
{[%clk 0:00:04.1]} 33... Kc6 {[%clk 0:00:03.5]} 34. exd4 {[%clk 0:00:04.7]}
34... Qxd4+ {[%clk 0:00:03]} 35. Kh1 {[%clk 0:00:04.5]} 35... Re5 {[%clk
0:00:01]} 36. Kg2 {[%clk 0:00:04.2]} 36... Kc5+ {[%clk 0:00:01.3]} 37. Kh3
{[%clk 0:00:04.9]} 37... Bc6 {[%clk 0:00:01.2]} 38. Qe7+ {[%clk 0:00:04.6]}
38... Qd6 {[%clk 0:00:01.3]} 39. Qxf6 {[%clk 0:00:05.5]} 39... Rh5+ {[%clk
0:00:01]} 40. Kg4 {[%clk 0:00:06]} 1-0

[Event "Late-Titled-Tuesday-Blitz-May-28-2024"]
[Site "Chess.com"]
[Date "2024.05.28"]
[Round "5"]
[White "joksijoksi"]
[Black "KebabJangles"]
[Result "1-0"]
[WhiteElo "2533"]
[BlackElo "2288"]
[TimeControl "180+1"]
[EndTime "14:56:16 PDT"]
[Termination "joksijoksi won by resignation"]

1. d4 {[%clk 0:03:00]} 1... Nf6 {[%clk 0:02:59.1]} 2. c4 {[%clk 0:02:56.9]} 2...
g6 {[%clk 0:02:58.2]} 3. Nc3 {[%clk 0:02:55.9]} 3... Bg7 {[%clk 0:02:56.4]} 4.
e4 {[%clk 0:02:56.2]} 4... d6 {[%clk 0:02:56.2]} 5. Be2 {[%clk 0:02:56.5]} 5...
Nc6 {[%clk 0:02:54.1]} 6. d5 {[%clk 0:02:54]} 6... Nb8 {[%clk 0:02:49]} 7. Be3
{[%clk 0:02:52.1]} 7... e5 {[%clk 0:02:43.8]} 8. g4 {[%clk 0:02:49.6]} 8... Na6
{[%clk 0:02:38.5]} 9. h4 {[%clk 0:02:47.9]} 9... Nc5 {[%clk 0:02:38]} 10. f3
{[%clk 0:02:48.4]} 10... h5 {[%clk 0:02:37.7]} 11. g5 {[%clk 0:02:47]} 11... Nh7
{[%clk 0:02:28.6]} 12. Qd2 {[%clk 0:02:46.6]} 12... O-O {[%clk 0:02:27.9]} 13.
O-O-O {[%clk 0:02:43.3]} 13... f6 {[%clk 0:02:27.9]} 14. Bf1 {[%clk 0:02:39]}
14... fxg5 {[%clk 0:02:23.7]} 15. hxg5 {[%clk 0:02:39.5]} 15... Rf7 {[%clk
0:02:15.5]} 16. Bh3 {[%clk 0:02:38.3]} 16... Nf8 {[%clk 0:02:09.6]} 17. Rf1
{[%clk 0:02:23.5]} 17... Bd7 {[%clk 0:02:06.7]} 18. Bxd7 {[%clk 0:02:22.8]}
18... Nfxd7 {[%clk 0:02:04.6]} 19. Nge2 {[%clk 0:02:22.7]} 19... Qe7 {[%clk
0:02:01]} 20. Ng3 {[%clk 0:02:22.2]} 20... Raf8 {[%clk 0:01:59.7]} 21. b4 {[%clk
0:02:13.8]} 21... Na6 {[%clk 0:01:57.7]} 22. a3 {[%clk 0:02:03.1]} 22... b6
{[%clk 0:01:54.5]} 23. Qg2 {[%clk 0:01:57.4]} 23... Rf4 {[%clk 0:01:54]} 24.
Nge2 {[%clk 0:01:54.6]} 24... R4f7 {[%clk 0:01:48.1]} 25. Qh3 {[%clk 0:01:52.4]}
25... Nab8 {[%clk 0:01:44.8]} 26. Qe6 {[%clk 0:01:51.4]} 26... Re8 {[%clk
0:01:41.8]} 27. Qxg6 {[%clk 0:01:49.2]} 27... Nf8 {[%clk 0:01:38.4]} 28. Qxh5
{[%clk 0:01:48.2]} 28... Nbd7 {[%clk 0:01:37.9]} 29. Ng3 {[%clk 0:01:41.4]}
29... Rf4 {[%clk 0:01:34.5]} 30. Nf5 {[%clk 0:01:38.2]} 30... Rxf5 {[%clk
0:01:34.7]} 31. exf5 {[%clk 0:01:38.1]} 31... e4 {[%clk 0:01:35.6]} 32. f6
{[%clk 0:01:32.5]} 32... Nxf6 {[%clk 0:01:32]} 33. gxf6 {[%clk 0:01:14]} 33...
Qxf6 {[%clk 0:01:32.9]} 34. Bd2 {[%clk 0:01:13.4]} 34... e3 {[%clk 0:01:31.3]}
35. Be1 {[%clk 0:01:13.7]} 35... Re5 {[%clk 0:01:27.5]} 36. Qh4 {[%clk
0:01:11.3]} 36... Qf5 {[%clk 0:01:27.2]} 37. Rfg1 {[%clk 0:01:07.4]} 37... Kf7
{[%clk 0:01:23.6]} 38. Ne4 {[%clk 0:00:53.6]} 38... e2 {[%clk 0:01:17]} 39. Bc3
{[%clk 0:00:37.2]} 39... Qxf3 {[%clk 0:01:14.5]} 40. Rxg7+ {[%clk 0:00:21]}
40... Kxg7 {[%clk 0:01:12.2]} 41. Qh8+ {[%clk 0:00:14.4]} 41... Kf7 {[%clk
0:01:09.3]} 42. Bxe5 {[%clk 0:00:12.3]} 42... Qxe4 {[%clk 0:00:54.9]} 43. Qh5+
{[%clk 0:00:10.3]} 43... Ke7 {[%clk 0:00:52.8]} 44. Qg5+ {[%clk 0:00:04.8]}
44... Ke8 {[%clk 0:00:50.1]} 45. Qh5+ {[%clk 0:00:04.5]} 45... Ng6 {[%clk
0:00:46.7]} 46. Bc3 {[%clk 0:00:02.4]} 46... Qe3+ {[%clk 0:00:44.2]} 47. Kb2
{[%clk 0:00:02.7]} 47... Qe4 {[%clk 0:00:40]} 48. Re1 {[%clk 0:00:02.8]} 48...
Kd7 {[%clk 0:00:37.5]} 49. Qxe2 {[%clk 0:00:02.6]} 49... Qxe2+ {[%clk
0:00:34.2]} 50. Rxe2 {[%clk 0:00:02.9]} 50... Nf4 {[%clk 0:00:35.1]} 51. Re3
{[%clk 0:00:03]} 51... Nd3+ {[%clk 0:00:36]} 52. Rxd3 {[%clk 0:00:03.4]} 52...
b5 {[%clk 0:00:36.7]} 53. cxb5 {[%clk 0:00:03.6]} 1-0

[Event "Late-Titled-Tuesday-Blitz-May-28-2024"]
[Site "Chess.com"]
[Date "2024.05.28"]
[Round "5"]
[White "ImportedItalianMaple"]
[Black "Masterisback04"]
[Result "1-0"]
[WhiteElo "2530"]
[BlackElo "2139"]
[TimeControl "180+1"]
[EndTime "14:56:18 PDT"]
[Termination "ImportedItalianMaple won on time"]

1. e4 {[%clk 0:03:00.9]} 1... c5 {[%clk 0:02:59.5]} 2. Nf3 {[%clk 0:03:01.3]}
2... Nc6 {[%clk 0:02:58.9]} 3. Bb5 {[%clk 0:03:01.3]} 3... e6 {[%clk 0:02:58.2]}
4. Bxc6 {[%clk 0:03:00.7]} 4... dxc6 {[%clk 0:02:58.3]} 5. b3 {[%clk 0:03:01.2]}
5... Nf6 {[%clk 0:02:46]} 6. d3 {[%clk 0:02:58.4]} 6... Be7 {[%clk 0:02:45.8]}
7. O-O {[%clk 0:02:57.6]} 7... O-O {[%clk 0:02:46.1]} 8. a4 {[%clk 0:02:55]}
8... Nd7 {[%clk 0:02:45.2]} 9. a5 {[%clk 0:02:53.3]} 9... e5 {[%clk 0:02:41.6]}
10. Nbd2 {[%clk 0:02:46.6]} 10... f6 {[%clk 0:02:39.9]} 11. Nc4 {[%clk
0:02:46.1]} 11... Rb8 {[%clk 0:02:27]} 12. c3 {[%clk 0:02:40.5]} 12... b5 {[%clk
0:02:27]} 13. axb6 {[%clk 0:02:40.7]} 13... axb6 {[%clk 0:02:27.9]} 14. Be3
{[%clk 0:02:36.3]} 14... b5 {[%clk 0:01:49.8]} 15. Ncd2 {[%clk 0:02:35.9]} 15...
Nb6 {[%clk 0:01:20.6]} 16. Qc2 {[%clk 0:02:34]} 16... Be6 {[%clk 0:01:04.6]} 17.
Ra7 {[%clk 0:02:26.6]} 17... Re8 {[%clk 0:01:00.6]} 18. Rfa1 {[%clk 0:02:25.7]}
18... Bf8 {[%clk 0:00:56.6]} 19. g3 {[%clk 0:01:25.2]} 19... Re7 {[%clk
0:00:25]} 20. c4 {[%clk 0:01:22.8]} 20... b4 {[%clk 0:00:17.6]} 21. Kg2 {[%clk
0:01:10.1]} 21... Rd7 {[%clk 0:00:15.7]} 22. Rxd7 {[%clk 0:01:04]} 22... Qxd7
{[%clk 0:00:16.6]} 23. Ra6 {[%clk 0:00:58.3]} 23... Qb7 {[%clk 0:00:15.5]} 24.
Ra5 {[%clk 0:00:56.7]} 24... Qc8 {[%clk 0:00:13.3]} 25. h4 {[%clk 0:00:47]}
25... Nd7 {[%clk 0:00:11]} 26. Qa2 {[%clk 0:00:45.4]} 26... Qe8 {[%clk
0:00:06.5]} 27. Ra6 {[%clk 0:00:41.2]} 27... Rc8 {[%clk 0:00:05.4]} 28. Qa4
{[%clk 0:00:40.2]} 28... Nb8 {[%clk 0:00:05.1]} 29. Ra8 {[%clk 0:00:35.1]} 29...
Qd7 {[%clk 0:00:04.9]} 30. Qa5 {[%clk 0:00:27.7]} 30... Bd6 {[%clk 0:00:02.5]}
31. Ne1 {[%clk 0:00:23.3]} 31... Bc7 {[%clk 0:00:02.8]} 32. Qxc5 {[%clk
0:00:19.3]} 32... Bh3+ {[%clk 0:00:02.1]} 33. Kh2 {[%clk 0:00:18.1]} 33... h6
{[%clk 0:00:01.7]} 34. Ra7 {[%clk 0:00:17.6]} 34... Bg4 {[%clk 0:00:01.8]} 35.
Qxb4 {[%clk 0:00:16.5]} 35... Qd8 {[%clk 0:00:02.3]} 36. Qb7 {[%clk 0:00:15.3]}
36... Nd7 {[%clk 0:00:02.8]} 37. f3 {[%clk 0:00:13.1]} 37... Be6 {[%clk
0:00:01.8]} 38. b4 {[%clk 0:00:12.8]} 38... Nf8 {[%clk 0:00:02.2]} 39. Qxc6
{[%clk 0:00:12.5]} 39... Bd6 {[%clk 0:00:01.9]} 40. Qa6 {[%clk 0:00:11.8]} 40...
Rc7 {[%clk 0:00:01.9]} 41. Rxc7 {[%clk 0:00:11.5]} 41... Bxc7 {[%clk 0:00:02]}
42. c5 {[%clk 0:00:12.1]} 42... Bb8 {[%clk 0:00:02.5]} 43. Nc4 {[%clk 0:00:12]}
1-0

[Event "Late-Titled-Tuesday-Blitz-May-28-2024"]
[Site "Chess.com"]
[Date "2024.05.28"]
[Round "5"]
[White "JohnWhite1952"]
[Black "wild3000"]
[Result "0-1"]
[WhiteElo "2033"]
[BlackElo "2390"]
[TimeControl "180+1"]
[EndTime "14:56:19 PDT"]
[Termination "wild3000 won on time"]

1. e4 {[%clk 0:02:58.6]} 1... c5 {[%clk 0:02:45]} 2. Nf3 {[%clk 0:02:58.2]} 2...
e6 {[%clk 0:02:45]} 3. d4 {[%clk 0:02:56.7]} 3... cxd4 {[%clk 0:02:45.5]} 4.
Nxd4 {[%clk 0:02:57.6]} 4... Nc6 {[%clk 0:02:45.2]} 5. Nc3 {[%clk 0:02:56.6]}
5... a6 {[%clk 0:02:41.8]} 6. Be3 {[%clk 0:02:50.2]} 6... Qc7 {[%clk 0:02:41.5]}
7. Be2 {[%clk 0:02:45.9]} 7... b5 {[%clk 0:02:41.4]} 8. a3 {[%clk 0:02:38.8]}
8... Bb7 {[%clk 0:02:41.3]} 9. O-O {[%clk 0:02:35.2]} 9... Nf6 {[%clk
0:02:37.8]} 10. f3 {[%clk 0:02:12.3]} 10... Rc8 {[%clk 0:02:35.2]} 11. Kh1
{[%clk 0:02:08.1]} 11... Be7 {[%clk 0:02:23.2]} 12. Qd2 {[%clk 0:02:03.2]} 12...
O-O {[%clk 0:02:22.1]} 13. Rad1 {[%clk 0:01:51.1]} 13... Rfd8 {[%clk 0:02:17]}
14. Bg1 {[%clk 0:01:34.7]} 14... h6 {[%clk 0:02:12.7]} 15. Nxc6 {[%clk 0:01:27]}
15... Bxc6 {[%clk 0:02:06]} 16. Bd4 {[%clk 0:01:15.9]} 16... Bb7 {[%clk
0:02:04.8]} 17. Qe3 {[%clk 0:01:09.2]} 17... d5 {[%clk 0:01:54.2]} 18. Bb6
{[%clk 0:01:07.3]} 18... Bc5 {[%clk 0:01:25.3]} 19. Bxc7 {[%clk 0:00:59.8]}
19... Bxe3 {[%clk 0:01:24.9]} 20. Bxd8 {[%clk 0:00:59.6]} 20... Rxd8 {[%clk
0:01:25.8]} 21. exd5 {[%clk 0:00:57.3]} 21... exd5 {[%clk 0:01:25.6]} 22. Bd3
{[%clk 0:00:51]} 22... g6 {[%clk 0:01:19.9]} 23. Rfe1 {[%clk 0:00:49.6]} 23...
Bc5 {[%clk 0:01:19.7]} 24. Ne2 {[%clk 0:00:40]} 24... Bf2 {[%clk 0:01:16.8]} 25.
Rf1 {[%clk 0:00:39.3]} 25... Be3 {[%clk 0:01:16.9]} 26. Ng3 {[%clk 0:00:28.9]}
26... Kf8 {[%clk 0:01:12.5]} 27. Rfe1 {[%clk 0:00:24.4]} 27... Bf2 {[%clk
0:01:02.9]} 28. Re2 {[%clk 0:00:23.9]} 28... Bc5 {[%clk 0:01:02.6]} 29. b4
{[%clk 0:00:23.6]} 29... Bd6 {[%clk 0:01:00.2]} 30. Rde1 {[%clk 0:00:22.4]}
30... h5 {[%clk 0:00:58.1]} 31. Nf1 {[%clk 0:00:19.1]} 31... Rc8 {[%clk
0:00:57.5]} 32. Nd2 {[%clk 0:00:18.5]} 32... Rc3 {[%clk 0:00:55.2]} 33. Nb3
{[%clk 0:00:18.3]} 33... h4 {[%clk 0:00:51.9]} 34. Na5 {[%clk 0:00:17.7]} 34...
Bc8 {[%clk 0:00:48.6]} 35. Nb3 {[%clk 0:00:15]} 35... h3 {[%clk 0:00:47.6]} 36.
g3 {[%clk 0:00:09.4]} 36... Bd7 {[%clk 0:00:47.5]} 37. Re3 {[%clk 0:00:04.2]}
37... Rc8 {[%clk 0:00:47.2]} 38. R3e2 {[%clk 0:00:04.3]} 38... Rc7 {[%clk
0:00:47.4]} 39. Re3 {[%clk 0:00:04.7]} 39... g5 {[%clk 0:00:47.5]} 40. R3e2
{[%clk 0:00:05.5]} 40... g4 {[%clk 0:00:47.8]} 41. Re3 {[%clk 0:00:06.4]} 41...
Kg7 {[%clk 0:00:44.1]} 42. fxg4 {[%clk 0:00:06.1]} 42... Nxg4 {[%clk 0:00:42]}
43. R3e2 {[%clk 0:00:05.1]} 43... Rc3 {[%clk 0:00:40.5]} 44. Kg1 {[%clk
0:00:04.6]} 44... Bc7 {[%clk 0:00:39.5]} 45. Nd4 {[%clk 0:00:01.2]} 45... Bb6
{[%clk 0:00:40]} 0-1